Cogmind - Beta 15 @@@ ROGUE MODE // 2025.07.19 @ 21:26:48 Player: Waste Result: Destroyed by Striker with Plasma Lance Performance ------------- Evolutions (7) 3500 Regions Visited (17) 3400 Robots Destroyed (252) 1260 Value Destroyed (11021) 11021 Prototype IDs (59) 1180 Alien Tech Used (0) 0 Bonus (10238) 10238 TOTAL SCORE: 30599 Bonus ------- High Alert Combat Kills 2852 Follower Combat Kills 2303 Network Hubs Disabled 600 Registered with UFD 300 Met Optimus in HQ 500 Met Warlord at Base 500 MAIN.C Attacked Warlord 500 Built Enhanced Grunts 300 A7 Reached Mainframe 300 Met R17 at Cetus 500 Met R17 at Research 2000 Friendly Fire -417 Cogmind --------- Core Integrity 0/1300 Matter 300/300 Energy 100/100 System Corruption 31% Temperature Cool (0) Movement Core (1350) Ox26 Location -3/Research Parts ------- > --- POWER (1) -------- (None) > --- PROPULSION (6) --- (None) > --- UTILITY (9) ------ Huge Storage Unit Advanced Signal Interpreter Improved Hacking Suite > --- WEAPON (5) ------- (None) > --- INVENTORY (25) --- Vortex Chain Reactor Advanced Thermal Generator Improved Energy Well (400) High-capacity Matter Pod (200) Deep Structural Scanner Experimental Sensor Array Quantum Capacitor Advanced Transmission Jammer Ghost Barrier Advanced System Restoration Module Amulet of Y3-NDR Plasma Storm Compact HERF Cannon Micro-nuke Launcher Peak State ------------ > --- POWER ------------ Quantum Reactor > --- PROPULSION ------- Myomer Leg Myomer Leg Enhanced Biometal Leg Experimental Myomer Leg Experimental Myomer Leg Experimental Myomer Leg > --- UTILITY ---------- Experimental Power Amplifier Advanced Heat Sink Advanced Cooling System Huge Storage Unit Advanced Signal Interpreter Experimental Core Analyzer Improved Phase Shifter Improved Medium Armor Plating Improved Hacking Suite > --- WEAPON ----------- Railgun Railgun Advanced KE Penetrator Helical Railgun Compact Linear Accelerator > --- INVENTORY -------- Micro Antimatter Reactor Vortex Chain Reactor Advanced Thermal Generator Improved Energy Well High-capacity Matter Pod Deep Structural Scanner Experimental Sensor Array Quantum Capacitor Advanced Transmission Jammer Layered Medium Armor Plating Centrium Light Armor Plating Ghost Barrier Advanced System Restoration Module Long-range Tractor Beam Amulet of Y3-NDR Plasma Storm Compact HERF Cannon Micro-nuke Launcher Micro-nuke Launcher [Rating: 170] Favorites ----------- Power Quantum Reactor Engine Subdweller Power Source Power Core Light Nuclear Core Reactor Quantum Reactor Propulsion Light Treads Treads Light Treads Leg Aluminum Leg Wheel Wheel Utility Huge Storage Unit Device Experimental Sensor Array Storage Huge Storage Unit Processor Advanced Signal Interpreter Hackware Improved Hacking Suite Protection Centrium Medium Armor Plating Weapon Advanced Variable Charge Gun Energy Gun Advanced Variable Charge Gun Energy Cannon Advanced Plasma Cannon Ballistic Gun KE Penetrator Ballistic Cannon Battle Cannon Launcher Heavy Missile Launcher Special Weapon Multitool Build | -11 -10 -10 -8 -8 -6 -6 -6 -6 -6 -5 -5 -5 -4 -4 -4 -4 -3 ------- Run | Yrd Mat Sub Rec Scr Fac Ext Cet Arc Hub Fac Upp War Pro Fac Upp Upp Res Slots Evolved 14 | . . . . . 8 . . . . 2 . . . 2 . . 2 Power . | . . . . . . . . . . . . . . . . . . Propulsion 4 | . . . . . 2 . . . . 2 . . . . . . . Utility 7 | . . . . . 5 . . . . . . . . 2 . . . Weapon 3 | . . . . . 1 . . . . . . . . . . . 2 Parts Attached 175 | . 1 13 2 5 46 10 6 11 10 . 3 6 2 10 2 1 47 Power 12 | . . 2 1 1 3 . 1 . 2 . . . . . . . 2 Engine 6 | . . 2 1 . 3 . . . . . . . . . . . . Core 1 | . . . . 1 . . . . . . . . . . . . . Reactor 5 | . . . . . . . 1 . 2 . . . . . . . 2 Propulsion 46 | . . 6 . 1 12 4 2 . 2 . . . . 3 . . 16 Treads 28 | . . 2 . 1 10 4 2 . 2 . . . . 3 . . 4 Leg 14 | . . 2 . . 1 . . . . . . . . . . . 11 Wheel 4 | . . 2 . . 1 . . . . . . . . . . . 1 Hover . | . . . . . . . . . . . . . . . . . . Flight . | . . . . . . . . . . . . . . . . . . Utility 73 | . 1 1 . 3 17 6 . 8 2 . 2 5 2 4 2 . 20 Device 42 | . 1 1 . 2 7 3 . 6 . . 1 3 2 2 1 . 13 Storage 6 | . . . . 1 3 . . . . . . . . . . . 2 Processor 8 | . . . . . 5 . . . . . 1 . . . . . 2 Hackware 1 | . . . . . . . . . . . . . . 1 . . . Protection 16 | . . . . . 2 3 . 2 2 . . 2 . 1 1 . 3 Artifact . | . . . . . . . . . . . . . . . . . . Weapon 44 | . . 4 1 . 14 . 3 3 4 . 1 1 . 3 . 1 9 Energy Gun 11 | . . 2 . . 1 . 1 . 3 . . . . 1 . 1 2 Energy Cannon 8 | . . 1 . . 2 . 2 . . . 1 1 . 1 . . . Ballistic Gun 16 | . . . . . 9 . . 3 . . . . . . . . 4 Ballistic Cannon 4 | . . 1 . . . . . . 1 . . . . . . . 2 Launcher 4 | . . . . . 2 . . . . . . . . 1 . . 1 Special Weapon 1 | . . . 1 . . . . . . . . . . . . . . Impact Weapon . | . . . . . . . . . . . . . . . . . . Slashing Weapon . | . . . . . . . . . . . . . . . . . . Piercing Weapon . | . . . . . . . . . . . . . . . . . . Special Melee Weapon . | . . . . . . . . . . . . . . . . . . Unidentified Prototypes 23 | . . 1 . . 1 . 2 2 . . . 3 . 2 . . 12 Corrupted Parts 16 | . . . . . . . 3 1 7 . . . . . . . 5 System Corruption 93 | . . . . . . . 13 7 45 . . . . . . . 28 Parts Lost 76 | . . 2 . . 12 2 1 . 4 . . . 2 14 2 . 37 Power 6 | . . 1 . . 1 . . . . . . . . 1 . . 3 Propulsion 28 | . . 1 . . 6 1 1 . 1 . . . . 3 1 . 14 Utility 26 | . . . . . 3 1 . . 2 . . . 1 6 1 . 12 Weapon 16 | . . . . . 2 . . . 1 . . . 1 4 . . 8 Highest Loss Streak 13 | . . 1 . . 4 1 1 . 3 . . . 1 10 2 . 13 To Critical Strikes 1 | . . . . . 1 . . . . . . . . . . . . Average Backups 15 | . 7 7 6 8 15 24 24 22 22 18 23 22 18 16 7 7 16 Power 1 | . 1 1 1 . 2 1 2 3 3 3 3 3 3 2 2 2 2 Propulsion 2 | . 4 2 1 2 3 7 4 2 1 . 1 1 1 2 . . . Utility 5 | . . . 2 2 2 5 7 8 9 8 10 10 7 6 4 4 10 Weapon 4 | . 2 2 1 2 5 9 8 7 6 6 7 7 5 4 1 1 2 Tool/Special . | . . . . . . . . . . . . . . . . . . Unused Backups 52 | . . 8 . 2 2 4 12 . . . 1 3 . 4 . . 16 Power 5 | . . . . . 1 . 1 . . . . . . . . . 3 Propulsion 16 | . . 1 . . . 4 7 . . . . . . 3 . . 1 Utility 20 | . . 2 . 1 . . 3 . . . 1 3 . 1 . . 9 Weapon 11 | . . 5 . 1 1 . 1 . . . . . . . . . 3 Tool/Special . | . . . . . . . . . . . . . . . . . . Average Slot Usage (%) 85 | . 87 96 98 70 93 99 88 83 85 82 82 82 80 78 70 72 87 Engine 4 | . 14 10 14 8 5 6 1 . . . . . . . . . . Reactor 2 | . . . . . . . 4 6 6 5 5 5 5 5 5 5 3 Treads 17 | . . 3 28 27 23 25 15 13 13 17 17 17 17 15 14 10 14 Leg 2 | . 28 12 . . . . . . . . . . . . . . 5 Wheel 1 | . . 11 . . . . . . . . . . . . . . 2 Device 12 | . 2 14 14 5 12 12 6 11 12 7 12 16 10 15 15 21 18 Storage 8 | . 14 14 14 13 10 6 12 6 6 6 9 5 5 5 5 5 4 Processor 9 | . . . . . 16 20 20 20 20 17 17 17 11 9 5 5 5 Hackware 1 | . . . . . . . . . . . . . . 4 5 5 4 Protection 3 | . . . . . 2 6 6 5 6 7 . . 10 6 8 5 3 Energy Gun 5 | . 14 14 12 . 1 . . . 6 13 5 5 3 7 10 14 10 Energy Cannon 2 | . . 6 . . 2 . 12 1 . . 2 5 4 4 . . . Ballistic Gun 6 | . 14 2 . . 12 19 6 17 12 1 5 5 3 1 . . 7 Ballistic Cannon 1 | . . 4 12 . . . . . . 1 2 . . . . . 1 Special Weapon 1 | . . . 1 8 . . . . . . . . . . . . . Peak Build Rating 170 | . 7 13 13 19 66 67 103 117 117 132 130 134 145 158 114 106 170 Average Rating 74 | . 6 11 12 11 51 64 90 106 114 130 127 128 140 144 106 104 131 On Entrance 73 | 6 6 7 12 11 9 66 66 103 117 115 128 127 132 139 82 99 106 Naked Turns 28 | . . . . 28 . . . . . . . . . . . . . Heaviest Build 177 | 11 12 23 18 28 120 125 135 135 130 138 138 134 136 141 150 150 177 Greatest Support 240 | 20 20 40 40 40 96 96 160 160 160 240 240 240 240 240 124 54 181 Greatest Overweight (x) 26 | . . 1 . 8 5 1 1 . . . . . . . 2 2 26 Average Overweight (x) . | . . . . . 1 1 . . . . . . . . . 2 2 Largest Inventory Capacity 25 | . 8 8 8 15 25 25 25 25 25 25 25 25 25 25 25 25 25 Average Capacity 19 | . 8 8 8 11 19 25 25 25 25 25 25 25 25 25 25 25 25 Most Carried 25 | . 8 8 8 13 25 25 25 25 25 19 25 25 25 25 14 14 25 Average Carried 17 | . 7 7 7 8 15 24 24 24 24 18 24 24 24 22 13 13 22 Final Capacity 25 | 8 8 8 8 15 25 25 25 25 25 25 25 25 25 25 25 25 25 Final Carried 25 | 6 8 6 8 11 25 25 25 25 20 19 25 24 24 15 13 14 20 Class Distribution -------------------- 32% | Mutant 24% | Scavenger-Gunner 18% | Scavenger-Tank 10% | Scavenger-Skirmisher 3% | Derelict-Skirmisher 3% | Gunner Dominant Class ---------------- Mutant | -10/Materials Mutant | -10/Subcaves Mutant | -8/Recycling Mutant | -8/Scraptown Scavenger-Gunner | -6/Factory Scavenger-Gunner | -6/Extension Commander-Tank | -6/Cetus Scavenger-Gunner | -6/Archives Scavenger-Tank | -6/Hub_04(d) Scavenger-Tank | -5/Factory Scavenger-Skirmisher | -5/Upper Caves Scavenger-Gunner | -5/Warlord Scavenger-Tank | -4/Proximity Caves Scavenger-Tank | -4/Factory Scavenger-Skirmisher | -4/Upper Caves Derelict-Skirmisher | -4/Upper Caves Scavenger-Tank | -3/Research Resources | -11 -10 -10 -8 -8 -6 -6 -6 -6 -6 -5 -5 -5 -4 -4 -4 -4 -3 ----------- Run | Yrd Mat Sub Rec Scr Fac Ext Cet Arc Hub Fac Upp War Pro Fac Upp Upp Res Matter Collected 8678 | 194 30 328 . 108 2287 1425 140 653 74 271 70 . 452 607 239 51 1749 Remotely 433 | . . . . . . . . . . . . . . . . . 433 Salvage Created 11020 | . 143 74 54 . 3531 1493 398 394 172 376 . . 312 2648 96 . 1329 Parts 540 | . 5 6 6 . 159 66 17 29 10 17 . . 24 131 6 . 64 Haulers Intercepted 3 | . . . . . 2 . . . . 1 . . . . . . . Recyclers Shooed 23 | . 2 . . . 9 3 . . . 5 . . . 4 . . . Parts Field Recycled . | . . . . . . . . . . . . . . . . . . Retrieved Matter . | . . . . . . . . . . . . . . . . . . Parts Self-Destructed 44 | . . 11 . . . . . . . . . . 26 . 7 . . Prevented 4 | . . . . . . . . . . . 3 . 1 . . . . Kills | -11 -10 -10 -8 -8 -6 -6 -6 -6 -6 -5 -5 -5 -4 -4 -4 -4 -3 ------- Run | Yrd Mat Sub Rec Scr Fac Ext Cet Arc Hub Fac Upp War Pro Fac Upp Upp Res Combat Hostiles Destroyed 173 | . 2 . 1 . 55 22 5 1 2 3 . . 11 41 4 . 26 Guns 89 | . 2 . . . 27 19 . . 2 1 . . 2 16 4 . 16 Cannons 19 | . . . 1 . 3 . 1 1 . 2 . . 3 5 . . 3 AOE 53 | . . . . . 25 3 . . . . . . 6 13 . . 6 Classes Destroyed 22 | . 3 1 1 . 12 1 . . . . . . 1 1 . . 2 Worker 19 | . 1 . . . 15 . . . . . . . . 3 . . . Builder 21 | . . . . . 10 1 . . . . . . . 9 . . 1 Tunneler 1 | . . . . . . . . . . . . . . 1 . . . Hauler 3 | . . . . . 2 . . . . 1 . . . . . . . Recycler 10 | . . . . . 6 2 . . . 1 . . . 1 . . . Mechanic 2 | . . . . . 2 . . . . . . . . . . . . Operator 13 | . . . . . 1 2 . 9 . . . . . 1 . . . Drone 1 | . . . . . . . . . . . . . 1 . . . . Watcher 8 | . 2 . . . 3 1 . . 1 . . . . 1 . . . Swarmer 40 | . . . . . 6 3 . . . . . . 4 12 4 . 11 Saboteur 1 | . . . . . 1 . . . . . . . . . . . . Grunt 69 | . 2 . . . 33 11 . . . . . . 3 17 . . 3 Brawler 5 | . . . . . 4 . . . . . . . . 1 . . . Duelist 2 | . . . . . 1 1 . . . . . . . . . . . Sentry 9 | . . . 1 . 2 3 . 1 2 . . . . . . . . Demolisher 1 | . . . . . . . . . . . . . . . . . 1 Specialist 1 | . . . . . 1 . . . . . . . . . . . . Hunter 13 | . . . . . 3 . . . . . . . . 6 . . 4 Programmer 18 | . . . . . 4 1 . . . 3 . . 3 5 . . 2 Behemoth 3 | . . . . . . 2 . . . . . . . . . . 1 Cetus Guard 5 | . . . . . . . 5 . . . . . . . . . . Striker 4 | . . . . . . . . . . . . . . . . . 4 Subdweller 1 | . . 1 . . . . . . . . . . . . . . . Thug 2 | . . . . . . 2 . . . . . . . . . . . Best Kill Streak 16 | . 3 . 1 . 14 5 4 4 2 2 . . 4 16 4 . 5 Combat Bots Only 12 | . 1 . 1 . 7 4 4 1 2 1 . . 4 12 4 . 5 Max Kills in Single Turn 6 | . 1 1 1 . 6 3 1 1 2 1 . . 4 5 1 . 4 Gunslinging 1 | . . . . . . . . . 1 . . . . . . . 1 Exploded 4 | . . . . . 4 3 . . . . . . 4 4 . . 4 Melee . | . . . . . . . . . . . . . . . . . . Uniques/NPCs Destroyed . | . . . . . . . . . . . . . . . . . . Combat | -11 -10 -10 -8 -8 -6 -6 -6 -6 -6 -5 -5 -5 -4 -4 -4 -4 -3 -------- Run | Yrd Mat Sub Rec Scr Fac Ext Cet Arc Hub Fac Upp War Pro Fac Upp Upp Res Hostile Shots Fired 1323 | . 19 52 5 . 282 88 24 11 97 8 . . 22 377 36 . 302 Missed 373 | . 3 22 1 . 74 30 10 3 18 3 . . 2 94 11 . 102 Hits 950 | . 16 30 4 . 208 58 14 8 79 5 . . 20 283 25 . 200 Melee 80 | . . . . . 3 . . . . . . . . . . . 77 Projectile 870 | . 16 30 4 . 205 58 14 8 79 5 . . 20 283 25 . 123 AOE 3 | . . . . . . . . . 1 . . . . . . . 2 Critical Strikes 49 | . . . . . 7 2 4 . 9 1 . . 2 11 . . 13 Part Disruptions 3 | . . . . . . . . . . . . . . 1 . . 2 Damage Taken 20598 | . 202 370 55 . 3091 734 251 233 2738 100 . . 284 5493 601 . 6446 Core 2776 | . 67 48 28 . 438 105 13 . 177 19 . . 31 272 246 . 1332 Absorbed by Shields 2320 | . . . . . 845 204 113 . . . . . 198 81 . . 879 Reduced by Siege Mode 220 | . . . . . . . . . . 12 . . 17 181 7 . 3 Redirected to Shielding 66 | . . . . . 66 . . . . . . . . . . . . Regen/Repaired (Parts) 357 | . . . . . . . . . . . . 357 . . . . . Core Remaining (%) 60 | 100 . . . 42 . . . . 13 . . . 95 . . 54 . Volleys Fired 532 | . 24 52 3 . 119 62 15 30 11 10 8 10 22 85 15 . 66 Largest 5 | . 2 2 2 . 3 3 3 3 3 3 1 1 3 3 2 . 5 Hottest 480 | . 70 93 93 . 235 78 240 150 240 240 98 240 211 338 480 . 338 Shots Fired 1249 | . 48 63 6 . 284 184 34 78 18 22 8 10 46 173 30 . 245 Gun 925 | . 48 26 3 . 218 182 6 58 15 16 . 1 18 92 30 . 212 Cannon 224 | . . 37 3 . 17 . 28 20 3 6 8 9 14 51 . . 28 Launcher 100 | . . . . . 49 2 . . . . . . 14 30 . . 5 Special . | . . . . . . . . . . . . . . . . . . Kinetic 723 | . 24 31 3 . 209 182 5 58 10 12 . . 13 30 . . 146 Thermal 371 | . 24 25 3 . 26 . 1 . 8 10 8 10 19 113 30 . 94 Explosive 78 | . . . . . 49 2 . . . . . . 14 8 . . 5 Electromagnetic 77 | . . 7 . . . . 28 20 . . . . . 22 . . . Robot Hit Streak 28 | . 8 14 2 . 28 20 13 13 12 12 . . 10 23 3 . 10 Robot Miss Streak 8 | . 3 2 6 . 8 5 2 3 1 1 . . 2 4 4 . 7 Penetration Max 2 | . . . . . 2 . . . . 1 . . . 1 . . 1 Secondary Targets 14 | . . . . . 5 2 . . 1 . . . . 1 3 . 2 Max Gunslinging Chain 1 | . . . . . 1 1 . . 1 . . . . 1 1 . 1 Shots Hit Robots 708 | . 27 17 2 . 182 122 26 56 11 15 . . 23 97 8 . 122 Core Hits 515 | . 10 5 1 . 196 66 15 24 7 8 . . 25 96 4 . 58 Critical Kills 12 | . . . . . 2 . . 5 . 2 . . . 2 . . 1 Critical Parts Destroyed 13 | . . . . . 5 . . 2 . 2 . . . 1 . . 3 Critical Strikes 33 | . 3 . . . 7 . 1 7 . 4 . . . 3 . . 8 Burn 5 | . 3 . . . . . . . . . . . . . . . 2 Meltdown 1 | . . . . . . . . . . . . . . 1 . . . Destroy 25 | . . . . . 7 . . 7 . 4 . . . 2 . . 5 Blast 1 | . . . . . . . . . . . . . . . . . 1 Corrupt 1 | . . . . . . . 1 . . . . . . . . . . Melee Attacks . | . . . . . . . . . . . . . . . . . . Impact . | . . . . . . . . . . . . . . . . . . Slashing . | . . . . . . . . . . . . . . . . . . Piercing . | . . . . . . . . . . . . . . . . . . Sneak Attacks . | . . . . . . . . . . . . . . . . . . Combat Hostiles . | . . . . . . . . . . . . . . . . . . Follow-up Attacks . | . . . . . . . . . . . . . . . . . . Damage Inflicted 30802 | . 292 326 57 . 10255 3355 766 1551 557 642 3 . 1525 6321 210 . 4942 Guns 14909 | . 277 97 20 . 3858 2856 118 1196 218 358 . . 374 2026 210 . 3301 Cannons 3364 | . . 211 26 . 192 . 648 355 21 147 . . 286 830 . . 648 Explosions 12114 | . . . . . 6172 392 . . 315 . . . 865 3377 . . 993 Melee . | . . . . . . . . . . . . . . . . . . Ramming 415 | . 15 18 11 . 33 107 . . 3 137 3 . . 88 . . . Kinetic 11775 | . 120 153 26 . 3690 2856 118 1196 164 313 . . 220 472 . . 2447 Thermal 5973 | . 157 80 20 . 360 . . . 75 192 . . 440 2937 210 . 1502 Explosive 9520 | . . . . . 6172 392 . . . . . . 865 1098 . . 993 Electromagnetic 3119 | . . 75 . . . . 648 355 315 . . . . 1726 . . . Impact . | . . . . . . . . . . . . . . . . . . Slashing . | . . . . . . . . . . . . . . . . . . Piercing . | . . . . . . . . . . . . . . . . . . Highest Corruption 68 | . . 2 2 2 7 7 20 27 68 . . . 4 11 11 11 31 Average Corruption 7 | . . 2 2 2 2 7 15 17 17 . . . 3 4 11 11 22 Corruption Purged 27 | . . . . . . . . 27 . . . . . . . . . Corruption Blocked . | . . . . . . . . . . . . . . . . . . Effects 336 | . . 32 7 . 32 69 13 23 4 . . . 14 20 45 11 66 Message Errors 93 | . . 9 3 . 8 24 6 7 1 . . . 4 3 9 6 13 Matter Fused 81 | . . 11 . . 5 17 4 5 1 . . . 4 4 14 2 14 Heat Flow Errors 32 | . . 3 1 . 3 9 1 2 . . . . . 2 1 1 9 Energy Discharges 29 | . . 2 . . 2 4 . 2 1 . . . 2 2 9 . 5 Parts Rejected 3 | . . . 1 . 1 . . . . . . . . . . . 1 Parts Fused 1 | . . . . . . 1 . . . . . . . . . . . Data Loss (minor) 42 | . . 4 1 . 10 6 2 . . . . . 2 4 6 . 7 Data Loss (major) 12 | . . 2 . . . 2 . 3 . . . . . 1 1 . 3 Misfires 13 | . . 1 . . 2 3 . 1 . . . . 2 . 3 . 1 Alerts 7 | . . . 1 . . . . . 1 . . . . . 1 2 2 Misdirections 3 | . . . . . . . . . . . . . . 1 . . 2 Weapon Failures 20 | . . . . . 1 3 . 3 . . . . . 3 1 . 9 Overload Shots 13 | . . . . . . . 1 . 3 4 . 1 . 2 2 . . Effects 1 | . . . . . . . . . . 1 . . . . . . . Energy Bleed 1 | . . . . . . . . . . 1 . . . . . . . Overflow Damage 657 | . . . . . 351 21 17 . 19 5 . . 46 163 . . 35 Projectiles 56 | . . . . . . . 17 . . . . . . 27 . . 12 Explosions 588 | . . . . . 351 21 . . 19 . . . 46 128 . . 23 Melee 13 | . . . . . . . . . . 5 . . . 8 . . . Knockbacks 9 | . . 1 . . . 1 . . 1 2 . . . 1 . . 3 Impact 4 | . . . . . . 1 . . . 2 . . . 1 . . . Kinetic 5 | . . 1 . . . . . . 1 . . . . . . . 3 Secondary . | . . . . . . . . . . . . . . . . . . Self-Inflicted Damage 948 | . . 18 . . 221 . . . 100 . . . 91 317 . . 201 Shots 25 | . . . . . 6 . . . 1 . . . 2 13 . . 3 Rammed 37 | . . . 2 . 6 10 . . 1 11 1 . . 6 . . . Targets Rammed 44 | . 3 . 2 . 9 11 . . 1 11 1 . . 6 . . . Kicked 3 | . 3 . . . . . . . . . . . . . . . . Crushed 4 | . . . . . 3 1 . . . . . . . . . . . Highest Temperature 666 | . 146 205 218 . 666 231 243 266 363 298 114 334 194 263 560 190 431 Average Temperature 115 | . 61 89 83 . 134 84 31 73 133 106 46 148 88 100 176 98 160 Received Heat Transfer 2389 | . 111 159 18 . 777 253 . 18 42 . . . 9 783 . . 219 Effects 26 | . . . . . 16 . . . . . . 2 . . 6 . 2 Shutdowns 5 | . . . . . 3 . . . . . . . . . 2 . . Energy Bleed 2 | . . . . . 1 . . . . . . . . . 1 . . Interference 9 | . . . . . 6 . . . . . . 1 . . . . 2 Matter Decay 2 | . . . . . . . . . . . . . . . 2 . . Short Circuit 2 | . . . . . 1 . . . . . . 1 . . . . . Damage (minor) 1 | . . . . . 1 . . . . . . . . . . . . Damage (major) 3 | . . . . . 3 . . . . . . . . . . . . Damage (core) 2 | . . . . . 1 . . . . . . . . . 1 . . Siege Activations 15 | . . . . . . . . 2 . 1 . . 3 6 2 . 1 Total Turns 211 | . . . . . . . . 37 . 16 . . 47 95 9 . 7 Longest Duration 48 | . . . . . . . . 33 . 16 . . 26 48 5 . 7 Martial Activations . | . . . . . . . . . . . . . . . . . . Shielding Activations . | . . . . . . . . . . . . . . . . . . Robots Disrupted 1 | . . . . . . . 1 . . . . . . . . . . Combat Hostiles 1 | . . . . . . . 1 . . . . . . . . . . Robots Corrupted 12 | . . . . . . . 4 . 1 1 . . . 6 . . . Combat Hostiles 10 | . . . . . . . 4 . . . . . . 6 . . . Parts Fried 19 | . . 1 . . . . 2 2 . 2 . . . 12 . . . Impact Corruptions 3 | . . . . . . 1 . . . 1 . . . 1 . . . Robots Melted 2 | . . . . . . . . . . . . . . 1 . . 1 Combat Hostiles 2 | . . . . . . . . . . . . . . 1 . . 1 Parts Melted 16 | . 1 . . . 5 2 . . 1 . . . 1 4 1 . 1 Heat Transferred 8325 | . 666 99 25 . 609 . . . 111 185 . . 523 3726 272 . 2109 Parts Sabotaged . | . . . . . . . . . . . . . . . . . . Parts Stolen . | . . . . . . . . . . . . . . . . . . Parts Stripped . | . . . . . . . . . . . . . . . . . . Power Chain Reactions 8 | . . . . . . . . . . . . . . 8 . . . Alert | -11 -10 -10 -8 -8 -6 -6 -6 -6 -6 -5 -5 -5 -4 -4 -4 -4 -3 ------- Run | Yrd Mat Sub Rec Scr Fac Ext Cet Arc Hub Fac Upp War Pro Fac Upp Upp Res Maximum Alert Level 4 | . . . . . 4 4 3 2 1 . . . . 4 . . 2 Low Security (%) 38 | . 100 . 100 . 33 . . . 96 100 . . . . . . 74 Level 1 9 | . . . . . 16 . . 38 3 . . . . 7 . . 9 Level 2 19 | . . . . . 13 . . 61 . . . . . 83 . . 15 Level 3 20 | . . . . . 17 65 100 . . . . . . 5 . . . Level 4 11 | . . . . . 18 34 . . . . . . . 3 . . . Level 5 . | . . . . . . . . . . . . . . . . . . High Security . | . . . . . . . . . . . . . . . . . . Max Security . | . . . . . . . . . . . . . . . . . . Peak Influence 1534 | . 25 . 100 . 1534 1528 971 505 232 124 . . . 1386 . . 616 Initial 847 | . . . 33 . . 745 847 364 105 104 . . . 450 . . 159 Average 475 | . 5 . 28 . 571 987 900 419 65 65 . . . 509 . . 147 Influence Increases 9127 | . 116 187 147 . 2171 1637 304 285 428 136 . 103 235 2172 90 . 1116 Destroy 0b10 Robot/C 4560 | . 40 120 20 . 1220 980 160 80 40 60 . 80 200 820 80 . 660 Destroy 0b10 Robot/NC 440 | . 15 . . . 205 45 10 45 10 10 . 5 5 80 . . 10 Destroy Leader 730 | . 4 . . . 262 126 . . 24 22 . . 30 142 10 . 110 Allied During Kill 909 | . . 22 . . 59 372 110 125 67 . . 18 . . . . 136 Successful Hack 253 | . 12 . 6 . 26 70 . . . 30 . . . 74 . . 35 Select Force Hacks 170 | . . . 120 . . . . . 50 . . . . . . . . Disable Machine 585 | . . . . . 90 15 15 30 120 . . . . 255 . . 60 Destroy Structure 865 | . . . 1 . 279 14 9 5 117 14 . . . 336 . . 90 Advance Influence 450 | . . . . . . . . . . . . . . 450 . . . Lose Combat Pursuer 165 | . 45 45 . . 30 15 . . . . . . . 15 . . 15 Influence Decreases 8769 | . 114 118 160 58 649 1645 907 893 517 300 50 103 235 786 1011 229 994 Entered New Map 3095 | . . 2 38 58 . 777 667 547 198 110 19 . . . 513 89 77 Time Decay 4085 | . 114 36 102 . 429 628 190 326 230 190 31 23 225 486 478 140 457 Search Patrol Dispatched 150 | . . . . . . . . . . . . . . 150 . . . Lost Part 690 | . . . . . 120 20 10 . 10 . . . 10 140 20 . 360 Lost Ally 749 | . . 80 20 . 100 220 40 20 79 . . 80 . 10 . . 100 Squads Dispatched 50 | . . . . . 19 9 . . 3 4 . . . 11 . . 4 Investigation 15 | . . . . . 5 5 . . 1 . . . . 2 . . 2 Extermination 9 | . . . . . 4 . . . 1 1 . . . 3 . . . Reinforcement 17 | . . . . . 6 3 . . 1 2 . . . 3 . . 2 Assault 7 | . . . . . 3 1 . . . . . . . 3 . . . Garrison 2 | . . . . . 1 . . . . 1 . . . . . . . Intercept . | . . . . . . . . . . . . . . . . . . Searches Triggered 1 | . . . . . . . . . . . . . . 1 . . . Construction Impeded 8 | . . . . . 5 1 . . . 1 . . . 1 . . . Haulers Reinforced 2 | . . . . . 1 . . . . . . . . 1 . . . Active Scanning Responses . | . . . . . . . . . . . . . . . . . . Cargo Convoy Interrupts . | . . . . . . . . . . . . . . . . . . Stealth | -11 -10 -10 -8 -8 -6 -6 -6 -6 -6 -5 -5 -5 -4 -4 -4 -4 -3 --------- Run | Yrd Mat Sub Rec Scr Fac Ext Cet Arc Hub Fac Upp War Pro Fac Upp Upp Res Distress Signals 22 | . . . . . 3 4 2 . . . . 2 . 4 . . 7 Communications Jammed . | . . . . . . . . . . . . . . . . . . Distress Signals . | . . . . . . . . . . . . . . . . . . Times Spotted 311 | . 11 13 1 . 68 52 10 14 16 5 1 1 9 55 4 . 51 Peak Tracking Total 10 | . 4 6 1 . 6 8 5 2 8 2 1 . 5 10 4 . 6 Tactical Retreats 8 | . 2 1 . . 2 1 . . . . . . . 1 . . 1 Traps | -11 -10 -10 -8 -8 -6 -6 -6 -6 -6 -5 -5 -5 -4 -4 -4 -4 -3 ------- Run | Yrd Mat Sub Rec Scr Fac Ext Cet Arc Hub Fac Upp War Pro Fac Upp Upp Res Traps Triggered 6 | . . 2 . . . 3 . . . . . . . . . . 1 Indirectly . | . . . . . . . . . . . . . . . . . . Trap Hack Attempts . | . . . . . . . . . . . . . . . . . . Triggered . | . . . . . . . . . . . . . . . . . . Disarmed . | . . . . . . . . . . . . . . . . . . Reprogrammed . | . . . . . . . . . . . . . . . . . . Reused . | . . . . . . . . . . . . . . . . . . Traps Extracted . | . . . . . . . . . . . . . . . . . . Installed . | . . . . . . . . . . . . . . . . . . Triggered . | . . . . . . . . . . . . . . . . . . Objects Rigged 3 | . . . . . . . . . . . . . . 3 . . . Exploded 1 | . . . . . . . . . . . . . . 1 . . . Machines | -11 -10 -10 -8 -8 -6 -6 -6 -6 -6 -5 -5 -5 -4 -4 -4 -4 -3 ---------- Run | Yrd Mat Sub Rec Scr Fac Ext Cet Arc Hub Fac Upp War Pro Fac Upp Upp Res Machines Disabled 42 | . . 2 . . 6 1 1 2 8 . . 1 . 17 . . 4 Max in Single Turn 9 | . . 1 . . 1 . 1 1 8 . . 1 . 9 . . 1 Garrison Access 4 | . . . . . 1 . . . 1 . . . . 1 . . 1 Network Hub 3 | . . . . . . . . . 3 . . . . . . . . Machines Repaired . | . . . . . . . . . . . . . . . . . . Machines Dismantled . | . . . . . . . . . . . . . . . . . . Machines Sabotaged 1 | . . . . . . . . . 1 . . . . . . . . Overloaded Fab Kills . | . . . . . . . . . . . . . . . . . . Hacking | -11 -10 -10 -8 -8 -6 -6 -6 -6 -6 -5 -5 -5 -4 -4 -4 -4 -3 --------- Run | Yrd Mat Sub Rec Scr Fac Ext Cet Arc Hub Fac Upp War Pro Fac Upp Upp Res Machines Accessed 70 | . 1 2 8 2 14 15 1 . 5 3 1 2 1 9 1 . 5 Terminals 39 | . 1 . 4 . 8 13 1 . 4 3 . . 1 3 . . 1 Fabricators 4 | . . . . . 2 . . . . . . . . 1 . . 1 Repair Stations . | . . . . . . . . . . . . . . . . . . Recycling Units 12 | . . . 4 . 2 2 . . . . . . . 3 . . 1 Scanalyzers 2 | . . . . . . . . . . . . . . 1 . . 1 Garrison Access 5 | . . . . . 2 . . . 1 . . . . 1 . . 1 Total Hacks 191 | . 5 7 16 17 35 31 1 . 7 16 1 2 1 33 1 . 18 Successful 101 | . 2 7 7 17 13 13 . . 2 8 1 2 1 16 1 . 11 Failed 89 | . 3 . 8 . 22 18 1 . 5 8 . . . 17 . . 7 Catastrophic 20 | . . . . . 8 4 . . 3 1 . . . 4 . . . Database Lockouts 1 | . . . 1 . . . . . . . . . . . . . . Manual 107 | . 5 . 24 . 22 12 1 . 6 10 . . . 21 . . 6 Terminals 109 | . 5 . 10 . 22 27 1 . 6 16 . . 1 17 . . 4 Fabricators 11 | . . . . . 6 . . . . . . . . 1 . . 4 Repair Stations . | . . . . . . . . . . . . . . . . . . Recycling Units 23 | . . . 6 . 3 4 . . . . . . . 8 . . 2 Scanalyzers 12 | . . . . . . . . . . . . . . 6 . . 6 Garrison Access 8 | . . . . . 4 . . . 1 . . . . 1 . . 2 Terminal Hacks 57 | . 2 7 3 17 2 9 . . . 6 1 2 1 6 1 . . Record 24 | . . 6 . 17 . . . . . . . . 1 . . . . Robot Analysis 2 | . 2 . . . . . . . . . . . . . . . . Prototype ID Bank 10 | . . . 3 . . . . . . 3 . . . 4 . . . Open Door 11 | . . . . . . 7 . . . . 1 2 . . 1 . . Branch Access Points 3 | . . . . . 1 . . . . 1 . . . 1 . . . Terminal Index 3 | . . . . . 1 1 . . . 1 . . . . . . . Repair Station Index 1 | . . . . . . 1 . . . . . . . . . . . Locate Traps 1 | . . . . . . . . . . . . . . 1 . . . Registered Components 1 | . . . . . . . . . . 1 . . . . . . . Proto ID Catalog 1 | . . 1 . . . . . . . . . . . . . . . Fabricator Hacks 6 | . . . . . 2 . . . . . . . . 1 . . 3 Network Status 4 | . . . . . 2 . . . . . . . . 1 . . 1 Load Schematic 1 | . . . . . . . . . . . . . . . . . 1 Build 1 | . . . . . . . . . . . . . . . . . 1 Repair Station Hacks . | . . . . . . . . . . . . . . . . . . Recycling Unit Hacks . | . . . . . . . . . . . . . . . . . . Scanalyzer 6 | . . . . . . . . . . . . . . 3 . . 3 Insert Component 5 | . . . . . . . . . . . . . . 2 . . 3 Analyze 1 | . . . . . . . . . . . . . . 1 . . . Garrison Access Hacks 4 | . . . . . 1 . . . 1 . . . . 1 . . 1 Seal Access 4 | . . . . . 1 . . . 1 . . . . 1 . . 1 Unauthorized Hacks 27 | . . . 4 . 8 4 . . 1 2 . . . 5 . . 3 Terminals 15 | . . . . . 4 3 . . 1 2 . . . 3 . . 2 Assimilate 1 | . . . . . . . . . . . . . . 1 . . . Botnet 9 | . . . . . 3 3 . . . 1 . . . 1 . . 1 Detonate 1 | . . . . . . . . . . . . . . 1 . . . Skim 3 | . . . . . 1 . . . . 1 . . . . . . 1 Sabotage 1 | . . . . . . . . . 1 . . . . . . . . Fabricators 2 | . . . . . 2 . . . . . . . . . . . . Fabnet 1 | . . . . . 1 . . . . . . . . . . . . Haulers 1 | . . . . . 1 . . . . . . . . . . . . Repair Stations . | . . . . . . . . . . . . . . . . . . Recycling Units 10 | . . . 4 . 2 1 . . . . . . . 2 . . 1 Tunnel 4 | . . . 4 . . . . . . . . . . . . . . Fedlink 4 | . . . . . 1 1 . . . . . . . 2 . . . Scrapoids 2 | . . . . . 1 . . . . . . . . . . . 1 Scanalyzers . | . . . . . . . . . . . . . . . . . . Garrison Access . | . . . . . . . . . . . . . . . . . . Data Cores Recovered 1 | . . . . . 1 . . . . . . . . . . . . Used . | . . . . . . . . . . . . . . . . . . Hacking Detections 44 | . 1 . 4 . 11 9 1 . 3 3 . . . 7 . . 5 Full Trace Events 12 | . . . 4 . 3 4 . . . . . . . . . . 1 Feedback Events . | . . . . . . . . . . . . . . . . . . Feedback Blocked . | . . . . . . . . . . . . . . . . . . Robot Schematics Acquired . | . . . . . . . . . . . . . . . . . . Robots Built . | . . . . . . . . . . . . . . . . . . Authchips . | . . . . . . . . . . . . . . . . . . Time . | . . . . . . . . . . . . . . . . . . Total Robot Build Rating . | . . . . . . . . . . . . . . . . . . Part Schematics Acquired 1 | . . . . . . . . . . . . . . 1 . . . Parts Built 1 | . . . . . . . . . . . . . . . . . 1 Authchips . | . . . . . . . . . . . . . . . . . . Time 187 | . . . . . . . . . . . . . . . . . 187 Total Part Build Rating 7 | . . . . . . . . . . . . . . . . . 7 Parts Repaired . | . . . . . . . . . . . . . . . . . . Time . | . . . . . . . . . . . . . . . . . . Parts Recycled . | . . . . . . . . . . . . . . . . . . Recycled Matter . | . . . . . . . . . . . . . . . . . . Retrieved Matter . | . . . . . . . . . . . . . . . . . . Retrieved Components . | . . . . . . . . . . . . . . . . . . Parts Scanalyzed 1 | . . . . . . . . . . . . . . 1 . . . Part Schematics Acquired 1 | . . . . . . . . . . . . . . 1 . . . Parts Damaged 1 | . . . . . . . . . . . . . . 1 . . . Bothacking | -11 -10 -10 -8 -8 -6 -6 -6 -6 -6 -5 -5 -5 -4 -4 -4 -4 -3 ------------ Run | Yrd Mat Sub Rec Scr Fac Ext Cet Arc Hub Fac Upp War Pro Fac Upp Upp Res Used RIF Installer . | . . . . . . . . . . . . . . . . . . Robots Hacked 2 | . . . . . . . . . . . . 1 1 . . . . Non-combat . | . . . . . . . . . . . . . . . . . . Combat 2 | . . . . . . . . . . . . 1 1 . . . . Robot Hacks Applied . | . . . . . . . . . . . . . . . . . . Relay Couplers Released . | . . . . . . . . . . . . . . . . . . Fabnet Peak Effective % 3 | . . . . . . . . . . 3 3 3 1 1 1 1 . Autooverrided 2 | . . . . . . . . . . . . 1 1 . . . . Robots Rewired 14 | . . . . . . 9 . . . . . 5 . . . . . Allies Hacked . | . . . . . . . . . . . . . . . . . . Hacks Repelled . | . . . . . . . . . . . . . . . . . . Allies | -11 -10 -10 -8 -8 -6 -6 -6 -6 -6 -5 -5 -5 -4 -4 -4 -4 -3 -------- Run | Yrd Mat Sub Rec Scr Fac Ext Cet Arc Hub Fac Upp War Pro Fac Upp Upp Res Total Allies 56 | . . 12 . . 5 19 5 . . . . 6 1 1 . . 7 Largest Group 10 | . . 10 . . 5 7 9 8 5 . . 5 1 1 . . 5 Highest-Rated Group 723 | . . 190 . . 140 319 723 692 480 . . 235 64 26 . . 323 Highest-Rated Ally 159 | . . 19 . . 28 159 159 159 96 . . 64 64 26 . . 81 Total Orders 3 | . . . . . . . 1 2 . . . . . . . . . STAY 2 | . . . . . . . 1 1 . . . . . . . . . FOLLOW 1 | . . . . . . . . 1 . . . . . . . . . Ally Attacks 498 | . . 33 1 . 62 224 38 24 25 . . 30 1 . . . 60 Total Damage 10255 | . . 544 . . 937 3941 750 875 678 . . 981 45 . . . 1504 Kills 71 | . . 9 . . 8 31 5 4 1 . . 5 . . . . 8 Allies Corrupted 4 | . . . . . . . . . 4 . . . . . . . . Allies Melted . | . . . . . . . . . . . . . . . . . . Intel | -11 -10 -10 -8 -8 -6 -6 -6 -6 -6 -5 -5 -5 -4 -4 -4 -4 -3 ------- Run | Yrd Mat Sub Rec Scr Fac Ext Cet Arc Hub Fac Upp War Pro Fac Upp Upp Res Active Infowar (turns) 8837 | . . . . 1282 848 2 . 2 397 255 1179 1062 580 779 1234 280 937 Optics 1 | . . . . . . . . . . . . . . . . . 1 Sensors 7457 | . . . . 1266 522 . . 2 396 253 1177 1043 579 579 1214 280 146 Terrain 1 | . . . . . . . . . . . . . . . . . 1 Structural 6209 | . . . . 16 563 . . . 196 253 1179 1053 23 477 1233 280 936 Traps 761 | . . . . . 121 . . . . . 1 . . 639 . . . ECM 2 | . . . . . . 2 . . . . . . . . . . . Robot Analysis Total 2 | . 2 . . . . . . . . . . . . . . . . Derelict Logs Recovered 10 | . . 3 . 4 . . . . . . 1 . . . 2 . . Drone Launches . | . . . . . . . . . . . . . . . . . . Drone Recoveries . | . . . . . . . . . . . . . . . . . . Exploration | -11 -10 -10 -8 -8 -6 -6 -6 -6 -6 -5 -5 -5 -4 -4 -4 -4 -3 ------------- Run | Yrd Mat Sub Rec Scr Fac Ext Cet Arc Hub Fac Upp War Pro Fac Upp Upp Res Turns Passed 21758 | . 406 2500 415 3357 2705 2178 393 726 565 382 1202 1087 681 1278 1234 280 2369 Spaces Moved 10966 | 1 265 2000 248 2134 1119 782 176 358 316 185 580 624 342 559 446 82 749 Core 85 | . . . . 83 . . . . . . . . . . . . 2 Treads 8415 | . . 163 248 2051 957 782 176 358 316 185 580 624 342 559 446 82 546 Legs 1161 | 1 265 735 . . 2 . . . . . . . . . . . 158 Wheels 1305 | . . 1102 . . 160 . . . . . . . . . . . 43 Hover . | . . . . . . . . . . . . . . . . . . Flight . | . . . . . . . . . . . . . . . . . . Fastest Speed 50 | 120 120 90 160 50 160 240 160 160 160 160 160 160 160 160 173 330 98 Average Speed 171 | 120 120 117 160 156 192 240 173 160 160 160 160 160 160 161 256 330 260 Slowest Speed 1350 | 120 120 190 160 450 320 242 243 160 160 160 160 160 160 173 360 330 1350 Overloaded Moves . | . . . . . . . . . . . . . . . . . . Propulsion Burnouts . | . . . . . . . . . . . . . . . . . . Robots Hopped . | . . . . . . . . . . . . . . . . . . Potential Cave-ins 4 | . . . . . . . . . . . . 4 . . . . . Cave-ins Triggered . | . . . . . . . . . . . . . . . . . . Exploration Rate (%) 52 | 1 37 95 74 88 31 90 64 94 31 9 74 84 54 21 67 11 27 Regions Visited 17 Branch Regions 12 Pre-discovered Areas 12 | . . 2 4 5 . 1 . . . . . . . . . . . Known Exits Taken 14 | . . 1 . 1 1 1 1 1 1 1 1 1 1 1 1 1 . Unknown Exits Taken 3 | 1 1 . 1 . . . . . . . . . . . . . . Scrap Searched 23 | . . 12 . 2 . . . . . . 4 . 3 . 1 1 . Spaces Dug 43 | . . . . . 1 24 . . 2 3 4 1 . 4 3 . 1 Terrain Destroyed 968 | . . 1 . . 368 24 . 5 184 7 8 9 136 180 10 . 36 Melee . | . . . . . . . . . . . . . . . . . . Projectile 118 | . . 1 . . 15 . . 5 5 7 8 9 4 26 10 . 28 AOE 849 | . . . . . 352 24 . . 179 . . . 132 154 . . 8 Terrain Rammed 3 | . . 3 . . . . . . . . . . . . . . . Walls Destroyed . | . . . . . . . . . . . . . . . . . . Machines Disabled . | . . . . . . . . . . . . . . . . . . Actions | -11 -10 -10 -8 -8 -6 -6 -6 -6 -6 -5 -5 -5 -4 -4 -4 -4 -3 --------- Run | Yrd Mat Sub Rec Scr Fac Ext Cet Arc Hub Fac Upp War Pro Fac Upp Upp Res Total 12871 | . 308 2091 260 2158 1415 957 242 452 357 244 843 706 435 806 507 93 997 Wait 690 | . 14 9 . . 44 11 6 32 12 31 241 14 51 104 40 10 71 Move 10949 | . 264 1999 247 2133 1118 781 175 357 315 184 579 623 341 558 445 81 749 Hop . | . . . . . . . . . . . . . . . . . . Pick Up 127 | . 2 5 2 11 26 9 16 3 . 1 6 5 1 11 1 1 27 Fast Attach 60 | . 1 3 1 7 15 2 2 8 . . . . . 1 2 1 17 Attach 60 | . . 3 1 . 13 1 . 1 5 1 . 1 2 15 3 . 14 Detach 7 | . . . 1 1 2 . . . 1 . . . 1 1 . . . Swap 196 | . . 7 1 1 54 13 6 11 12 6 7 10 17 15 1 . 35 Drop 117 | . . 10 2 5 15 13 22 10 . . 1 11 . 10 . . 18 Fire 532 | . 24 52 3 . 119 62 15 30 11 10 8 10 22 85 15 . 66 Melee . | . . . . . . . . . . . . . . . . . . Ram 3 | . . 3 . . . . . . . . . . . . . . . Kick 3 | . 3 . . . . . . . . . . . . . . . . Crush 41 | . . . 2 . 9 11 . . 1 11 1 . . 6 . . . Escape Stasis 6 | . . . . . . 6 . . . . . . . . . . . Rewire 80 | . . . . . . 48 . . . . . 32 . . . . . Trap . | . . . . . . . . . . . . . . . . . . Miscellaneous . | . . . . . . . . . . . . . . . . . . Route ------- -11/Scrapyard -10/Materials (discovered 2 exits: [*Min] / *Sub) -10/Subcaves (discovered 3 exits: [*Mat x2] / *Rec) -8/Recycling (discovered 2 exits: *Fac / *Scr) -8/Scraptown (discovered 2 exits: *Fac x2) -6/Factory (discovered 5 exits: *Fac / Low x2 / *Ext x2) -6/Extension (discovered 2 exits: *Fac / *Cet) -6/Cetus (discovered 2 exits: *Fac / *Arc) -6/Archives (discovered 3 exits: *Fac / *Hub x2) -6/Hub_04(d) -5/Factory (discovered 3 exits: *Fac / *Upp x2) -5/Upper Caves (discovered 2 exits: *Upp / *War) -5/Warlord -4/Proximity Caves -4/Factory (discovered 3 exits: *Upp x2 / Arm) -4/Upper Caves -4/Upper Caves -3/Research (discovered 2 exits: Res / Qua) History --------- Turn | Location | Event 1 | -11/Scrapyard | Discovered new exit (range 0) 1 | -11/Scrapyard | Entered Materials 131 | -10/Materials | Discovered new exit (range 15) 305 | -10/Materials | Build established: Mutant 401 | -10/Materials | Discovered new exit (range 6) 407 | -10/Materials | Entered Subcaves 529 | -10/Subcaves | Visited triangular shrine 536 | -10/Subcaves | Found Prototype Device 536 | -10/Subcaves | Identified V3-11A's Pendant 541 | -10/Subcaves | Befriended Subdweller 599 | -10/Subcaves | Learned location of 1 exit from Materials 617 | -10/Subcaves | Visited Clippyterm 620 | -10/Subcaves | Identified exit to Recycling 620 | -10/Subcaves | Learned Factory trap positions 1257 | -10/Subcaves | Learned location of Zion (-7) 1333 | -10/Subcaves | Ambushed by Subdwellers from Twisted Machinery 1336 | -10/Subcaves | Befriended Subdweller 1336 | -10/Subcaves | Befriended Subdweller 1504 | -10/Subcaves | A swath of the cavern ceiling suddenly collapsed 1571 | -10/Subcaves | Befriended Subdweller 1576 | -10/Subcaves | Befriended Subdweller 1643 | -10/Subcaves | Disturbed a concealed Subdweller 1646 | -10/Subcaves | Befriended Subdweller 1731 | -10/Subcaves | Befriended Subdweller 1731 | -10/Subcaves | Befriended Subdweller 1931 | -10/Subcaves | Befriended Subdweller 2036 | -10/Subcaves | Discovered new exit (range 16) 2046 | -10/Subcaves | Discovered new exit (range 9) 2061 | -10/Subcaves | Befriended Subdweller 2061 | -10/Subcaves | Befriended Subdweller 2061 | -10/Subcaves | Befriended Subdweller 2143 | -10/Subcaves | A swath of the cavern ceiling suddenly collapsed 2169 | -10/Subcaves | Lost 3 allies 2601 | -10/Subcaves | Visited 4L-MR0's lab 2860 | -10/Subcaves | Lost 6 allies 2907 | -10/Subcaves | Entered Recycling 2907 | -8/Recycling | Accompanied by 1 ally 2912 | -8/Recycling | Core integrity fell below 50% 3166 | -8/Recycling | Discovered new exit (range 7) 3281 | -8/Recycling | Scanned before Scraplab entrance 3306 | -8/Recycling | Entered Scraplab 3319 | -8/Recycling | Discovered new exit (range 3) 3322 | -8/Recycling | Entered Scraptown 3326 | -8/Scraptown | System corruption cleaned by C-Scrubber 3402 | -8/Scraptown | Delivered V3-11A's Pendant to T0-NE2 in exchange for information 3586 | -8/Scraptown | Scanned Subdweller tech in exchange for log data 3590 | -8/Scraptown | Learned location of Quarantine (-3) 3591 | -8/Scraptown | Learned Factory stockpile data 3596 | -8/Scraptown | Learned 12 Research zone layouts 3633 | -8/Scraptown | Heard Great Nut preacher, LISTEN AND RECITE! 3727 | -8/Scraptown | Visited UFD Registry 3727 | -8/Scraptown | Registered with UFD as "Fissioncutter" 3854 | -8/Scraptown | Delivered Scrap Shield to a Scientist 3897 | -8/Scraptown | Visited Supply Room 3924 | -8/Scraptown | Visited LU-1G1's Boring Crew 3953 | -8/Scraptown | Visited Scrap Suit Storage 3975 | -8/Scraptown | Visited Scrapoid Research Area 4036 | -8/Scraptown | Visited Cartography Club 4071 | -8/Scraptown | Visited Curators Association 4097 | -8/Scraptown | Visited Derelict Rescue Squad 4135 | -8/Scraptown | Visited Science Testing Area 4153 | -8/Scraptown | Visited Observation Area 4183 | -8/Scraptown | Visited Infowarlord's Domain 4194 | -8/Scraptown | Found Exp. Sensor Array 4396 | -8/Scraptown | Visited Symbiants 4869 | -8/Scraptown | Visited TADAMA 4890 | -8/Scraptown | Visited Assassins FH 4917 | -8/Scraptown | Visited Cave Peace 5460 | -8/Scraptown | Released all parts (6) 5488 | -8/Scraptown | Found Deep Structural Scanner 5494 | -8/Scraptown | Learned location of Warlord (-5) 5494 | -8/Scraptown | Learned 12 Materials zone layouts 5494 | -8/Scraptown | Learned location of Cetus (-6) 5494 | -8/Scraptown | Learned 8 Factory zone layouts 5494 | -8/Scraptown | Learned 8 Access zone layouts 5494 | -8/Scraptown | Learned 12 Lower Caves zone layouts 5494 | -8/Scraptown | Learned 8 Lower Caves zone layouts 5494 | -8/Scraptown | Learned 16 Upper Caves zone layouts 5494 | -8/Scraptown | Learned location of 2 exits from Upper Caves 5494 | -8/Scraptown | Learned location of 1 exit from Proximity Caves 5494 | -8/Scraptown | Identified exit to Factory 5494 | -8/Scraptown | Learned 20 Lower Caves zone layouts 6585 | -8/Scraptown | Met Optimus 6585 | -8/Scraptown | Accepted into 0bPrime 6679 | -8/Scraptown | Entered Factory 6679 | -6/Factory | Evolved 8 slots: Propulsion x2, Utility x5, Weapon x1 6680 | -6/Factory | Identified exit to Factory 6680 | -6/Factory | Identified exit to Lower Caves 6682 | -6/Factory | Loaded intel: 105 trap records 7055 | -6/Factory | Discovered exit to Lower Caves (range 19) 7125 | -6/Factory | Loaded intel: 8 recycling unit locations 7151 | -6/Factory | Build established: Skirmisher 7566 | -6/Factory | Garrison activated, responded to threat 7586 | -6/Factory | Build established: Scavenger-Gunner 7630 | -6/Factory | Destroyed 7 combat bots 7634 | -6/Factory | Lost 4 parts (3n1u) 7666 | -6/Factory | Scrapoid reinforcements arrived 8079 | -6/Factory | First assault squad dispatched 8340 | -6/Factory | Identified exit to Extension 8988 | -6/Factory | Destroyed 7 combat bots 9015 | -6/Factory | Core integrity fell below 50% 9384 | -6/Factory | Entered Extension 9472 | -6/Extension | Rescued a captive Derelict 9474 | -6/Extension | Rescued a captive Derelict 9543 | -6/Extension | Rescued a captive Derelict 9544 | -6/Extension | Rescued a captive Derelict 9578 | -6/Extension | Rescued a captive Derelict 10546 | -6/Extension | Build established: Commander-Gunner 10647 | -6/Extension | Spotted B-75 Beast 10657 | -6/Extension | Destroyed B-75 Beast 10674 | -6/Extension | Spotted B-75 Beast 10688 | -6/Extension | Destroyed B-75 Beast 10709 | -6/Extension | Disrupted transfer network 10784 | -6/Extension | First assault squad dispatched 10915 | -6/Extension | Lost 5 allies 10949 | -6/Extension | Loaded intel: 2 recycling unit locations 10949 | -6/Extension | Learned location of Protoforge (-2) 10967 | -6/Extension | Rescued A7 10996 | -6/Extension | Rescued a captive Derelict 11006 | -6/Extension | Rescued a captive Derelict 11022 | -6/Extension | Rescued a captive Derelict 11045 | -6/Extension | Build established: Scavenger-Gunner 11413 | -6/Extension | Rescued a captive Derelict 11437 | -6/Extension | Build established: Gunner 11523 | -6/Extension | Discovered exit to Factory (range 10) 11526 | -6/Extension | Discovered new exit (range 6) 11553 | -6/Extension | Identified exit to Cetus 11562 | -6/Extension | Entered Cetus 11562 | -6/Cetus | Accompanied by 6 allies (A7) 11567 | -6/Cetus | Acquired a Cetus Manufacturing Module code from A7 11597 | -6/Cetus | Spotted Cetus Guard 11597 | -6/Cetus | Spotted Cetus Guard 11602 | -6/Cetus | Allies destroyed Cetus Guard 11603 | -6/Cetus | Spotted Cetus Guard 11608 | -6/Cetus | Spotted Cetus Guard 11611 | -6/Cetus | Destroyed Cetus Guard 11618 | -6/Cetus | Allies destroyed Cetus Guard 11620 | -6/Cetus | Allies destroyed Cetus Guard 11657 | -6/Cetus | System corruption reached 10% 11734 | -6/Cetus | Started Cetus Manufacturing Module 11748 | -6/Cetus | Escorted A7 to Cetus Mainframe 11759 | -6/Cetus | Manufactured an Enhanced Grunt 11766 | -6/Cetus | Discovered new exit (range 16) 11784 | -6/Cetus | Manufactured an Enhanced Grunt 11796 | -6/Cetus | Spotted Cetus Guard 11796 | -6/Cetus | Spotted Cetus Guard 11801 | -6/Cetus | Destroyed Cetus Guard 11801 | -6/Cetus | Spotted Cetus Guard 11804 | -6/Cetus | Destroyed Cetus Guard 11804 | -6/Cetus | Spotted Cetus Guard 11809 | -6/Cetus | Manufactured an Enhanced Grunt 11810 | -6/Cetus | Destroyed Cetus Guard 11815 | -6/Cetus | Destroyed Cetus Guard 11830 | -6/Cetus | Discovered exit to Factory (range 16) 11834 | -6/Cetus | Manufactured an Enhanced Grunt 11838 | -6/Cetus | Met Revision 17 11859 | -6/Cetus | Manufactured an Enhanced Grunt 11944 | -6/Cetus | Identified exit to Archives 11955 | -6/Cetus | Entered Archives 11955 | -6/Archives | Accompanied by 8 allies (A7) 11960 | -6/Archives | Received a hacking code to weaken MAIN.C 12038 | -6/Archives | Discovered exit to Factory (range 16) 12104 | -6/Archives | Discovered new exit (range 13) 12278 | -6/Archives | Discovered new exit (range 14) 12303 | -6/Archives | Build established: Scavenger-Gunner 12603 | -6/Archives | Unable to access archive contents 12672 | -6/Archives | Identified exit to Hub_04(d) 12681 | -6/Archives | Entered Hub_04(d) 12681 | -6/Hub_04(d) | Accompanied by 5 allies 12857 | -6/Hub_04(d) | Discovered exit to Factory (range 10) 13121 | -6/Hub_04(d) | Network Hub disabled 13170 | -6/Hub_04(d) | Spotted Lightning 13170 | -6/Hub_04(d) | Spotted Lightning 13172 | -6/Hub_04(d) | Spotted Lightning 13173 | -6/Hub_04(d) | Network Hub disabled 13173 | -6/Hub_04(d) | Spotted Lightning 13173 | -6/Hub_04(d) | Spotted Lightning 13175 | -6/Hub_04(d) | Spotted Lightning 13180 | -6/Hub_04(d) | Lost 5 allies 13226 | -6/Hub_04(d) | Lost 3 parts (2u1w) 13228 | -6/Hub_04(d) | Network Hub disabled 13232 | -6/Hub_04(d) | Core integrity fell below 20% 13238 | -6/Hub_04(d) | System corruption reached 30% 13246 | -6/Hub_04(d) | Entered Factory 13246 | -5/Factory | Evolved 2 slots: Propulsion x2 13273 | -5/Factory | Identified exit to Upper Caves 13458 | -5/Factory | Discovered new exit (range 11) 13513 | -5/Factory | Garrison activated, responded to threat 13542 | -5/Factory | Build established: Scavenger-Tank 13628 | -5/Factory | Entered Upper Caves 13629 | -5/Upper Caves | Encountered a Warlord checkpoint 13629 | -5/Upper Caves | Identified exit to Upper Caves 13630 | -5/Upper Caves | UFD Scientist delivered a prototype 13650 | -5/Upper Caves | Found Prototype Protection 13943 | -5/Upper Caves | Build established: Scavenger-Skirmisher 14542 | -5/Upper Caves | A Derelict revealed a hidden shortcut to "reach the base" 14544 | -5/Upper Caves | Identified exit to Warlord 14710 | -5/Upper Caves | Learned 4 Factory zone layouts 14818 | -5/Upper Caves | Build established: Scavenger-Gunner 14830 | -5/Upper Caves | Entered Warlord 15102 | -5/Warlord | Received a Watcher feed algorithm from an ecstatic Tinkerer 15298 | -5/Warlord | Found Prototype Device 15298 | -5/Warlord | Identified System Purifier 15313 | -5/Warlord | Found Prototype Device 15313 | -5/Warlord | Identified Exp. Phase Shifter 15326 | -5/Warlord | Found Prototype Reactor 15341 | -5/Warlord | Found Prototype Hackware 15429 | -5/Warlord | Visited the Vortex Lab 15442 | -5/Warlord | Warlord's base attacked by MAIN.C 15632 | -5/Warlord | Rebuked by Warlord 15682 | -5/Warlord | Found Prototype Energy Gun 15792 | -5/Warlord | Warlord forces counterattacked 15813 | -5/Warlord | Lost 10 allies 15843 | -5/Warlord | Opened side exit 15884 | -5/Warlord | Discovered new exit (range 14) 15907 | -5/Warlord | Identified exit to Proximity Caves 15917 | -5/Warlord | Entered Proximity Caves 15917 | -4/Proximity Caves | Accompanied by 1 ally 15918 | -4/Proximity Caves | Identified exit to Factory 15922 | -4/Proximity Caves | Found DCF Scrap (15 items) 16011 | -4/Proximity Caves | Spotter reported a threat 16179 | -4/Proximity Caves | Build established: Scavenger-Tank 16270 | -4/Proximity Caves | Spotter reported a threat 16395 | -4/Proximity Caves | Spotter reported a threat 16598 | -4/Proximity Caves | Entered Factory 16598 | -4/Factory | Evolved 2 slots: Utility x2 16599 | -4/Factory | Identified exit to Armory 16617 | -4/Factory | Found Quantum Capacitor 16706 | -4/Factory | Loaded intel: 8 recycling unit locations 16740 | -4/Factory | Identified Enh. Scrap Shield 16845 | -4/Factory | Destroyed 7 combat bots 16848 | -4/Factory | Search patrols dispatched 17432 | -4/Factory | Identified exit to Upper Caves 17589 | -4/Factory | Build established: Scavenger-Skirmisher 17701 | -4/Factory | System corruption reached 10% 17752 | -4/Factory | Lost 10 parts (1p3n4u2w) 17766 | -4/Factory | Destroyed 12 combat bots 17848 | -4/Factory | First assault squad dispatched 17876 | -4/Factory | Entered Upper Caves 17877 | -4/Upper Caves | Identified exit to Upper Caves 18007 | -4/Upper Caves | Learned location of 1 exit from Research 18054 | -4/Upper Caves | Encountered a Warlord checkpoint 19110 | -4/Upper Caves | Entered another Upper Caves area 19111 | -4/Upper Caves | Encountered a Warlord checkpoint 19169 | -4/Upper Caves | Build established: Derelict-Skirmisher 19177 | -4/Upper Caves | Prototype Device suddenly appears! 19189 | -4/Upper Caves | Found Prototype Device 19256 | -4/Upper Caves | Discovered new exit (range 16) 19387 | -4/Upper Caves | Identified exit to Research 19390 | -4/Upper Caves | Entered Research 19390 | -3/Research | Evolved 2 slots: Weapon x2 19391 | -3/Research | Identified exit to Quarantine 19392 | -3/Research | Identified exit to Research 19536 | -3/Research | Identified Amulet of Y3-NDR 19568 | -3/Research | Joined by bewildered Wizard 19568 | -3/Research | Joined by bewildered Wizard 19604 | -3/Research | Revision forces began assault on 0b10 19609 | -3/Research | Met up with Revision 17++ 19627 | -3/Research | Fabricated Adv. KE Penetrator? 19888 | -3/Research | Build established: Scavenger-Tank 20104 | -3/Research | Research terminal network offline 20360 | -3/Research | Spotted B-86 Titan 20367 | -3/Research | Destroyed B-86 Titan 20462 | -3/Research | Spotted Striker 20490 | -3/Research | Allied Derelicts emerged from ambush trap array 20568 | -3/Research | System corruption reached 10% 20726 | -3/Research | Identified Ghost Barrier 20726 | -3/Research | Identified Plasma Storm 20726 | -3/Research | Identified Vortex Chain Reactor 20738 | -3/Research | Spotted Striker 20753 | -3/Research | Destroyed Striker 20831 | -3/Research | Spotted Striker 20834 | -3/Research | Spotted Striker 20835 | -3/Research | Spotted Striker 20867 | -3/Research | Lost 5 allies 20885 | -3/Research | Found Prototype Processor 20885 | -3/Research | Identified Exp. Core Analyzer 20968 | -3/Research | Lost 3 allies 21005 | -3/Research | Spotted Striker 21017 | -3/Research | Spotted Striker 21027 | -3/Research | Destroyed Striker 21028 | -3/Research | Spotted Striker 21031 | -3/Research | Destroyed Striker 21043 | -3/Research | Destroyed Striker 21162 | -3/Research | Scrapoid reinforcements arrived 21410 | -3/Research | Spotted Striker 21413 | -3/Research | Allies destroyed Striker 21458 | -3/Research | Lost 5 allies 21469 | -3/Research | System corruption reached 30% 21482 | -3/Research | Lost 6 parts (4n1u1w) 21573 | -3/Research | Spotted Striker 21579 | -3/Research | Spotted Striker 21581 | -3/Research | Spotted Striker 21665 | -3/Research | Lost 13 parts (1p2n5u5w) 21674 | -3/Research | Spotted Striker 21679 | -3/Research | Spotted Striker 21732 | -3/Research | Core integrity fell below 50% 21752 | -3/Research | Core integrity fell below 20% 21759 | -3/Research | Destroyed by Striker with Plasma Lance Last Messages --------------- 21692_ Knocked back. 21695_ DEKI#GCG|0 21705_ Flexi-carbon Leg destroyed. 21710_ System corrupted: Heat flow error (+159). 21710_ Exp. Myomer Leg destroyed. 21715_ Acquired 6 matter. 21716_ Flexi-carbon Leg destroyed. 21719_ Critical hit (Impale). 21724_ Mic. Antimatter Reactor destroyed. 21726_ System corrupted: Matter fused (-9). 21731_ Adv. Cooling System destroyed. 21731_ Exp. Core Analyzer destroyed. 21737_ Enh. Biometal Leg destroyed. 21737_ Adv. Heat Sink destroyed. 21741_ C-30 ARC bursts open, deploying its payload. 21741_ G-67 Veteran unfolds itself. 21741_ Critical hit (Burn: +37). 21744_ System corrupted: Substantial component data lost. 21759_ Critical hit (Impale). Map ----- +----------------------------------------------------+ | ?????????????????????????????????????????????????? | | ?????????????????????????????????????????????????? | | ?????????????????????????????????????????????????? | | ?????????????????????????????????????????????????? | | ?????????????????????????????????????????????????? | | ?????????????????????????????????????????????????? | | ?????????????????????????????????????????????????? | | ?????????????????????????????????????????????????? | | ?????????????????????????????????????????????????? | | ?????????????????????????????????????????????????? | | ?????????????????????????????????????????????????? | | ?????????????????????????????????????????????????? | | ?????????????????????????????????????????????????? | | ?????????????????????????????????????????????????? | | ?????????????????????????????????????????????????? | | ?????????????????????????????????????????????????? | | ?????????????????????????????????" ? ???????????? | | ????????????????????????????????? ??????????? | | ????????????????????????????????> ??????????? | | ????????????????????????????????? ??????????# | | ?????????????????????????????????? ?????####### | | ?????????????????????????###?????? " ??????# # | | ?????????????????????????# #??????#"#??????# # | | ?????????????????????????# ########"#??????# = # | | ????????????????#*#;!#%###K /! ;######## # | | ??????????= %%! =!=!%@Kg !!%! |=*!!#= # | | ??????????% %!% %%%[]%lg% %%* %!!=%|%+! # | | ?????????????########;!#;[% ! g #+####% #!%! # | | ????????????????# != #% % ##% # | | ????????????????# # ## # [ | | ????????????????# % ## # ! | | ????????????????# " ! ## "!! [%+ | | ????????????????# !# # #" #!! !# | | ????????????????# # ! % !! ## ####### | | ????????????????# " "" #% [%!; !! ## #????# | | ????????????????# "R"" ?#% *%!%# !! ##%%#?##### | | ??????????????### "?"" ?# !==%#;####"#%["## | | ?????????????##"########## ![*!! # ! | | ???????????###" !!%% % # ! | | ??????????? # % | | #########+##"## | | ## # | | ## ! ! ## % // ! | | "" ## ## !%! // | | "" ## #" / # | | *==##"+"""#### % % #### | | =*####=!= % =%!! == # #?? | | [%%+%==*%! =% [!%= ! # #?? | | ""*[##""/*# [ #####!%!## #?? | | ""=[#####""#"+## #???##!]### ##?? | +----------------------------------------------------+ Best States ------------- Heat Dissipation 96 Coolant Potential 120 Energy Generation 33 Energy Capacity 1000 Matter Stores 300 Matter Capacity 300 Sight Range 23 Robot Scan Range 20 Terrain Scan Density 10 Power Amplification 40 Armor Coverage 2050 Propulsion Shielding 66 Weapon Cycling 15 Phase Shifting 20 Evasion (%) 60 Targeting Accuracy 6 Core Analysis 8 Recoil Reduction 6 Offensive Hacking 12 Item Schematics ----------------- Adv. KE Penetrator | -4/Factory | Scanalyzed Robot Schematics ------------------ None Fabricated ------------ Adv. KE Penetrator | x1 | -3/Research Repaired ---------- Nothing Alien Tech Used ----------------- None Achievements -------------- None Challenges ------------ None Game ------ Seed MasterOvertunedBuckler Manual? 0 Play Time 02:13:42 Cumulative 399.5 hours Start 2025.07.15 @ 20:43:11 End 2025.07.19 @ 21:26:48 Sessions 11 Manual Loads 0 Difficulty Rogue Special Mode None Game No. 492 Rogue 492 Adventurer 0 Explorer 0 Win Type - Total 31 Types 15/1/9/1/1/1/0/1/1/1 Lore% 87 Gallery% 80 Achievement% 77 Wizard Run 0 Options --------- Layout 0 ASCII 0 Keyboard 0 Movement Numpad Keybinds 0 Fullscreen 1 Font 18/SmallcapsGlow Map View 76x50 Zoom Use 0% Tactical HUD 1 Map Filters NONE Filters NONE Steam 1 RUN: b79f5125-f8cb-4da9-a313-2d3b1ae1ea80